[Event "Karel Janecek Open 2025"]
[Site "Prague"]
[Date "2025.03.04"]
[Round "6.11"]
[White "Agmanov, Zhandos"]
[Black "Jacobsen, Mikkel Manosri"]
[Result "1-0"]
[Annotator "TA"]
[ECO "B12"]
[WhiteElo "2469"]
[BlackElo "2314"]
[PlyCount "63"]
[EventDate "2025.02.21"]
[EventType "swiss"]
[EventCountry "CZE"]
[SourceTitle "playchess.com"]
[Source "ChessBase"]
[SourceQuality "1"]
[TimeControl "40/5400+30:1800+30"]

{[%evp 9,63,13,2,0,27,12,15,3,21,8,15,14,33,20,25,22,23,12,38,43,40,24,33,29,28,31,40,38,106,37,127,129,131,115,115,119,201,15,25,0,0,0,0,0,0,0,247,-80,167,157,29969,29970,29960,29961,29993,29994]} 1. e4 {[%emt 0:10:49][%cal Be2e4,Be4e5][%mdl 32]} c6 {[%emt 0:00:03]} 2. d4 {[%emt 0:00:08]} d5 {[%emt 0:00:04]} 3. e5 {[%emt 0:00:03]} Bf5 {[%emt 0:00:06]} 4. h4 {[%emt 0:00:04]} h5 {[%emt 0:00:06]} 5. Bd3 {[%emt 0:00:04]} Bxd3 {[%emt 0:00:05]} 6. Qxd3 {[%emt 0:00:03][%cal Oe5e6] B12: Caro-Kann: Advance Variation.} Qa5+ {[%emt 0:00:06] outshines the older 6...e6.} 7. Nd2 {[%emt 0:00:05][%cal Oe5e6]} e6 {[%emt 0:00:06]} 8. Ne2 {[%emt 0:01:14] The position is equal.} Nh6 {[%emt 0:07:12]} 9. O-O {[%emt 0:00:15]} Nf5 {[%emt 0:01:14]} 10. Nf3 {[%emt 0:00:16]} Qb5 {[%emt 0:04:35]} 11. Qd1 {[%emt 0:00:20]} c5 {[%emt 0:00:25]} 12. Bg5 {[%emt 0:00:10]} Nc6 {[%emt 0:00:54]} 13. a4 $146 {[%emt 0:01:06]} (13. b3 cxd4 14. Nexd4 Nfxd4 15. Nxd4 Nxd4 16. Qxd4 Bc5 17. Qd1 Qd7 18. Qe2 Be7 19. c4 Bxg5 20. hxg5 {½-½ Draskovic,L (2472)-Damjanovic,V (2328) SRB-chT Premier 2020 (1.6)}) 13... Qa5 {[%emt 0:03:24] [#]} 14. c4 $1 {[%emt 0:00:33]} cxd4 {[%emt 0:03:31]} 15. Nexd4 {[%emt 0:01:00]} Ncxd4 {[%emt 0:02:33]} 16. Nxd4 {[%emt 0:00:05]} Nxd4 {[%emt 0:00:05]} 17. Qxd4 {[%emt 0:00:04]} Bc5 {[%emt 0:00:13]} 18. Qf4 {[%emt 0:00:08]} dxc4 {[%emt 0:12:58]} ({Better is} 18... Qb4 $14) 19. Rfc1 {[%emt 0:31:25]} (19. Qxc4 O-O $11) (19. Rac1 $1 $16) 19... b5 {[%emt 0:03:46]} (19... Qb6 $14) 20. axb5 $16 {[%emt 0:20:22]} Qxb5 {[%emt 0:00:22]} 21. Rxc4 {[%emt 0:01:47]} (21. Qxc4 $6 Qxc4 22. Rxc4 Bb6 $11) 21... Bb6 {[%emt 0:14:54]} (21... Qxb2 $2 22. Rac1 Qxf2+ 23. Qxf2 Bxf2+ 24. Kxf2 $18) (21... Bxf2+ $2 22. Kxf2 Qxb2+ 23. Qd2 Qxd2+ (23... Qxa1 $2 24. Qb4 $18) 24. Bxd2 $18) 22. Rac1 {[%emt 0:13:21]} O-O {[%emt 0:09:58]} (22... Qd7 $16 {keeps fighting.}) 23. R4c3 $2 {[%emt 0:00:20]} (23. Bf6 $1 $18 gxf6 24. Qxf6) 23... Qxb2 $11 {[%emt 0:03:16]} 24. Be7 {[%emt 0:10:09]} Rfe8 {[%emt 0:01:34]} 25. Ba3 $36 {[%emt 0:02:02][%mdl 2048] White is more active.} Qb5 {[%emt 0:01:18]} 26. Rf3 {[%emt 0:00:59]} Qd7 {[%emt 0:00:34]} 27. Rcc3 {[%emt 0:03:00] Hoping for Rg3.} Red8 $2 {[%emt 0:01:38]} (27... Rac8 $11 {and Black has nothing to worry.} 28. Rcd3 Qb7) 28. Qg5 $2 {[%emt 0:02:12]} ({Only move:} 28. Rg3 $1 $18 {[%cal Rg3g7] Intending Rxg7+! and mate.} g6 29. Rcf3) 28... Rac8 $2 {[%emt 0:01:57] [#]} (28... Qd2 $17 {[%cal Ob6f2] and ...Bxf2+! should not be overlooked} 29. Qxh5 g6) 29. Be7 $1 $18 {[%emt 0:00:38]} g6 $2 {[%emt 0:09:26] [#]} (29... Bxf2+ $16 30. Rxf2 Qd1+ 31. Kh2 Rxc3) 30. Rxf7 $1 {[%emt 0:00:41] White mates.} Qd1+ {[%emt 0:00:06]} 31. Kh2 {[%emt 0:00:03]} Qg4 {[%emt 0:00:04]} 32. Qf6 {[%emt 0:00:21] Weighted Error Value: White=0.25 (precise) /Black=0.66  Loses game:     	---       	Black=3      Missed win:     	White=2     	---        Mistake:       	White=1     	Black=3      Inaccurate:     	---       	Black=2      OK:         	White=7     	Black=9      Best:        	White=2     	Black=3      Strong:       	White=1     	---        Brilliant:      	White=1     	---} 1-0

[Event "Karel Janecek Open 2025"]
[Site "Prague"]
[Date "2025.03.04"]
[Round "6.12"]
[White "Polyakov, Maxim"]
[Black "Urazayev, Arystanbek"]
[Result "1/2-1/2"]
[Annotator "TA"]
[ECO "A50"]
[WhiteElo "2327"]
[BlackElo "2467"]
[PlyCount "31"]
[EventDate "2025.02.21"]
[EventType "swiss"]
[EventCountry "CZE"]
[SourceTitle "playchess.com"]
[Source "ChessBase"]
[SourceQuality "1"]
[TimeControl "40/5400+30:1800+30"]

{[%evp 13,31,8,16,13,13,13,3,3,20,-8,4,0,6,6,1,5,0,0,29,-17]} 1. d4 {[%emt 0:00:01]} Nf6 {[%emt 0:01:56]} 2. Nf3 {[%emt 0:00:04]} b6 {[%emt 0:00:07]} 3. g3 {[%emt 0:00:14]} Bb7 {[%emt 0:00:06]} 4. Bg2 {[%emt 0:00:02]} g6 {[%emt 0:00:10]} 5. O-O {[%emt 0:00:17]} Bg7 {[%emt 0:00:07]} 6. c4 {[%emt 0:00:24]} O-O {[%emt 0:00:07]} 7. Nc3 {[%emt 0:01:12]} Ne4 {[%emt 0:01:03]} 8. Bd2 {[%emt 0:00:05] A50: Queen's Fianchetto Defence (1 d4 Nf6 2 c4 b6).} d6 {[%emt 0:03:49]} 9. Qc2 {[%emt 0:00:45]} Nxd2 {[%emt 0:03:36]} 10. Qxd2 {[%emt 0:00:01] The position is equal.} Nd7 {[%emt 0:00:57]} 11. e4 {[%emt 0:01:18]} e5 {[%emt 0:01:06]} 12. Rfe1 {[%emt 0:00:24]} a6 {[%emt 0:05:34]} 13. Rad1 {[%emt 0:00:11]} Re8 $146 {[%emt 0:06:01]} (13... exd4 14. Nxd4 Nc5 15. f4 Qd7 16. Nd5 b5 17. e5 bxc4 18. Nf6+ Bxf6 19. Bxb7 dxe5 20. fxe5 {1-0 Pirc,V-Subaric,M YUG-ch04 Belgrade 1948 (2)}) 14. dxe5 {[%emt 0:01:53]} Nxe5 {[%emt 0:03:02]} 15. Nxe5 {[%emt 0:00:03]} dxe5 {[%emt 0:06:07]} 16. Qxd8 {[%emt 0:00:06] A rather calm draw.   Weighted Error Value: White=0.05 (flawless) /Black=0.07 (flawless)   Mistake:       	White=1     	---        Inaccurate:     	White=1     	Black=1      OK:         	White=2     	Black=4} (16. Qc1 $142 Qf6 17. Nd5 Bxd5 18. cxd5) 1/2-1/2

[Event "Karel Janecek Open 2025"]
[Site "Prague"]
[Date "2025.03.04"]
[Round "6.13"]
[White "Simek, Petr"]
[Black "Kraus, Tomas"]
[Result "1/2-1/2"]
[Annotator "TA"]
[ECO "D30"]
[WhiteElo "2322"]
[BlackElo "2451"]
[PlyCount "28"]
[EventDate "2025.02.21"]
[EventType "swiss"]
[EventCountry "CZE"]
[SourceTitle "playchess.com"]
[Source "ChessBase"]
[SourceQuality "1"]
[TimeControl "40/5400+30:1800+30"]

{[%evp 9,28,28,50,46,46,39,51,39,47,19,20,14,20,4,15,0,22,0,5,0,2]} 1. d4 {[%emt 0:00:02]} d5 {[%emt 0:00:27]} 2. c4 {[%emt 0:00:06]} e6 {[%emt 0:00:10]} 3. Nf3 {[%emt 0:00:06]} Bb4+ {[%emt 0:00:31]} 4. Bd2 {[%emt 0:02:38]} a5 {[%emt 0:00:05]} 5. a3 {[%emt 0:02:38]} Be7 {[%emt 0:05:31]} 6. Nc3 {[%emt 0:03:42] D30: Queen's Gambit Declined: Systems without Nc3.} Nf6 {[%emt 0:00:46]} 7. Bf4 {[%emt 0:06:37]} O-O {[%emt 0:08:19]} 8. e3 {[%emt 0:00:24] White is slightly better.} b6 {[%emt 0:04:22]} 9. cxd5 {[%emt 0:02:26]} Nxd5 {[%emt 0:05:00] The position is equal.} 10. Nxd5 {[%emt 0:01:33]} exd5 {[%emt 0:00:07]} 11. Bd3 {[%emt 0:18:16] aiming for Qc2.} c5 {[%emt 0:00:21]} 12. O-O $146 {[%emt 0:00:21]} (12. Ne5 Ba6 13. O-O Bxd3 14. Qxd3 c4 15. Qf5 Qc8 16. Qh5 Nd7 17. Rfe1 f5 18. Qf3 Nxe5 19. Bxe5 {½-½ Espinosa,P (2229)-Nagy,G (2468) New York Mem Day 1000 GM IM-B 2023 (5.2)}) 12... Nc6 {[%emt 0:10:48]} 13. dxc5 {[%emt 0:06:25]} bxc5 {[%emt 0:01:10]} 14. e4 {[%emt 0:00:11]} Be6 {[%emt 0:17:57] Weighted Error Value: White=0.13 (very precise) /Black=0.08 (flawless)   Inaccurate:     	White=1     	---        OK:         	White=1     	Black=4} 1/2-1/2

[Event "Karel Janecek Open 2025"]
[Site "Prague"]
[Date "2025.03.04"]
[Round "6.14"]
[White "Rubes, Jan"]
[Black "Atoyan, Alberto"]
[Result "1/2-1/2"]
[Annotator "ChessBase"]
[ECO "D41"]
[WhiteElo "2444"]
[BlackElo "2235"]
[PlyCount "131"]
[EventDate "2025.02.21"]
[EventType "swiss"]
[EventCountry "CZE"]
[SourceTitle "playchess.com"]
[Source "ChessBase"]
[SourceQuality "1"]
[TimeControl "40/5400+30:1800+30"]

1. Nf3 {[%emt 0:00:03]} Nf6 {[%emt 0:00:10]} 2. c4 {[%emt 0:00:12]} e6 {[%emt 0:00:21]} 3. Nc3 {[%emt 0:00:15]} d5 {[%emt 0:00:14]} 4. d4 {[%emt 0:00:07]} c5 {[%emt 0:00:14]} 5. cxd5 {[%emt 0:00:17]} Nxd5 {[%emt 0:00:06]} 6. e4 {[%emt 0:00:09]} Nxc3 {[%emt 0:00:07]} 7. bxc3 {[%emt 0:00:04]} cxd4 {[%emt 0:00:05]} 8. cxd4 {[%emt 0:00:05]} Bb4+ {[%emt 0:00:12]} 9. Bd2 {[%emt 0:00:08]} Bxd2+ {[%emt 0:00:05]} 10. Qxd2 {[%emt 0:00:04]} O-O {[%emt 0:00:08]} 11. h4 {[%emt 0:00:05]} Nc6 {[%emt 0:17:48]} 12. Rd1 {[%emt 0:06:16]} b6 {[%emt 0:02:34]} 13. Bb5 {[%emt 0:01:46]} Bb7 {[%emt 0:00:49]} 14. O-O {[%emt 0:00:20]} a6 {[%emt 0:07:01]} 15. Bxc6 {[%emt 0:01:43]} Bxc6 {[%emt 0:03:16]} 16. Qf4 {[%emt 0:04:34]} Rc8 {[%emt 0:10:58]} 17. d5 {[%emt 0:05:08]} exd5 {[%emt 0:02:42]} 18. e5 {[%emt 0:00:06]} d4 {[%emt 0:14:10]} 19. Nxd4 {[%emt 0:02:06]} Qd5 {[%emt 0:03:53]} 20. Qg3 {[%emt 0:06:33]} Qe4 {[%emt 0:01:41]} 21. Rfe1 {[%emt 0:01:18]} Qg6 {[%emt 0:01:16]} 22. Qh3 {[%emt 0:08:58]} Kh8 {[%emt 0:08:59]} 23. h5 {[%emt 0:16:40]} Qg5 {[%emt 0:02:55]} 24. e6 {[%emt 0:07:36]} Bb7 {[%emt 0:06:59]} 25. Re3 {[%emt 0:04:02]} Rce8 {[%emt 0:03:16]} 26. exf7 {[%emt 0:18:51]} Rxe3 {[%emt 0:00:15]} 27. fxe3 {[%emt 0:00:04]} Qd5 {[%emt 0:05:03]} 28. Qf3 {[%emt 0:09:22]} h6 {[%emt 0:06:52]} 29. e4 {[%emt 0:01:16]} Qe5 {[%emt 0:00:47]} 30. Qf5 {[%emt 0:00:49]} Qe7 {[%emt 0:01:40]} 31. Rf1 {[%emt 0:03:03]} Bc8 {[%emt 0:00:48]} 32. Qd5 {[%emt 0:00:48]} Bb7 {[%emt 0:00:29]} 33. Qf5 {[%emt 0:02:10]} Bc8 {[%emt 0:00:07]} 34. Qd5 {[%emt 0:01:54]} Bb7 {[%emt 0:00:12]} 35. Qe6 {[%emt 0:00:31]} Qc5 {[%emt 0:00:12]} 36. Rd1 {[%emt 0:00:17]} Qxh5 {[%emt 0:00:18]} 37. Rf1 {[%emt 0:00:43]} Qc5 {[%emt 0:00:58]} 38. Rd1 {[%emt 0:00:36]} Qh5 {[%emt 0:00:36]} 39. Rf1 {[%emt 0:00:03]} Qc5 {[%emt 0:00:02]} 40. Rd1 {[%emt 0:00:16]} Bc8 {[%emt 0:01:36]} 41. Qe8 {[%emt 0:31:01]} Bg4 {[%emt 0:08:42]} 42. Rd2 {[%emt 0:00:00]} Bh5 {[%emt 0:02:27]} 43. Qxf8+ {[%emt 0:00:00]} Qxf8 {[%emt 0:00:07]} 44. Ne6 {[%emt 0:00:00]} Qxf7 {[%emt 0:00:33]} 45. Rd8+ {[%emt 0:00:00]} Qg8 {[%emt 0:01:54]} 46. Rxg8+ {[%emt 0:00:00]} Kxg8 {[%emt 0:00:02]} 47. Nc7 {[%emt 0:00:00]} a5 {[%emt 0:04:17]} 48. Kf2 {[%emt 0:00:00]} Bf7 {[%emt 0:01:14]} 49. a3 {[%emt 0:00:00]} Bc4 {[%emt 0:00:10]} 50. Ke3 {[%emt 0:00:00]} Kf7 {[%emt 0:00:09]} 51. Kd4 {[%emt 0:00:00]} Bf1 {[%emt 0:01:41]} 52. g3 {[%emt 0:00:00]} g5 {[%emt 0:01:56]} 53. Ke5 {[%emt 0:00:00]} b5 {[%emt 0:03:16]} 54. Kd6 {[%emt 0:00:00]} b4 {[%emt 0:00:37]} 55. axb4 {[%emt 0:00:00]} axb4 {[%emt 0:00:08]} 56. e5 {[%emt 0:00:00]} Bc4 {[%emt 0:00:35]} 57. Kc5 {[%emt 0:00:00]} b3 {[%emt 0:01:37]} 58. Kxc4 {[%emt 0:00:00]} b2 {[%emt 0:00:02]} 59. e6+ {[%emt 0:00:00]} Ke7 {[%emt 0:00:58]} 60. Nd5+ {[%emt 0:00:00]} Kxe6 {[%emt 0:00:05]} 61. Nc3 {[%emt 0:00:00]} Kf5 {[%emt 0:00:59]} 62. Kb3 {[%emt 0:00:00]} Kg4 {[%emt 0:00:36]} 63. Kxb2 {[%emt 0:00:00]} Kxg3 {[%emt 0:00:04]} 64. Kc2 {[%emt 0:00:00]} h5 {[%emt 0:00:55]} 65. Ne4+ {[%emt 0:00:00]} Kf4 {[%emt 0:00:49]} 66. Nxg5 {[%emt 0:00:00]} 1/2-1/2

[Event "Karel Janecek Open 2025"]
[Site "Prague"]
[Date "2025.03.04"]
[Round "6.15"]
[White "Prazak, Daniel"]
[Black "Druska, Juraj"]
[Result "1/2-1/2"]
[Annotator "TA"]
[ECO "C41"]
[WhiteElo "2319"]
[BlackElo "2442"]
[PlyCount "39"]
[EventDate "2025.02.21"]
[EventType "swiss"]
[EventCountry "CZE"]
[SourceTitle "playchess.com"]
[Source "ChessBase"]
[SourceQuality "1"]
[TimeControl "40/5400+30:1800+30"]

{[%evp 11,39,29,29,31,36,35,45,35,50,33,45,34,25,35,32,26,39,-4,25,2,17,14,28,27,57,55,55,53,87,65]} 1. e4 {[%emt 0:00:05]} e5 {[%emt 0:00:18]} 2. Nf3 {[%emt 0:00:26]} d6 {[%emt 0:00:11]} 3. d4 {[%emt 0:01:18]} exd4 {[%emt 0:00:09]} 4. Nxd4 {[%emt 0:00:35]} Nf6 {[%emt 0:00:12]} 5. Nc3 {[%emt 0:01:15]} Be7 {[%emt 0:00:12]} 6. g3 {[%emt 0:01:09][%cal Bg2g3,Bg3g4][%mdl 32]} O-O {[%emt 0:00:45]} 7. Bg2 {[%emt 0:00:13] C41: Philidor Defence.} Re8 {[%emt 0:00:09][%cal Od6d5]} 8. O-O {[%emt 0:00:37]} Bf8 {[%emt 0:00:06]} 9. h3 {[%emt 0:00:36] White is slightly better.} c6 $1 {[%emt 0:00:42] 9...c6 is better than 9...Nbd7.} 10. g4 {[%emt 0:00:17]} Na6 {[%emt 0:10:09]} 11. Bf4 {[%emt 0:03:09]} Nc5 {[%emt 0:01:38]} 12. Re1 {[%emt 0:01:32]} Ne6 {[%emt 0:00:16]} 13. Nxe6 $146 {[%emt 0:07:06]} (13. Bg3 Nd7 14. Nb3 Ne5 15. f4 Nc4 16. f5 Nc7 17. Qd4 {½-½ Palac,M (2516)-Muse,D (2311) CRO-chT1A 30th 2022 (5.3)}) 13... Bxe6 {[%emt 0:00:16]} 14. Qd4 {[%emt 0:01:24]} Qa5 {[%emt 0:39:10]} 15. b4 {[%emt 0:18:06]} Qb6 {[%emt 0:03:33]} 16. Rad1 {[%emt 0:02:34]} d5 {[%emt 0:26:16]} 17. exd5 {[%emt 0:15:48]} cxd5 {[%emt 0:00:08]} 18. a3 {[%emt 0:03:45][%cal Rc3d5]} Qxd4 {[%emt 0:01:58]} 19. Rxd4 {[%emt 0:01:05][%cal Rc3d5]} Rec8 {[%emt 0:00:15]} 20. Nxd5 {[%emt 0:04:04] Weighted Error Value: White=0.07 (flawless) /Black=0.12 (very precise)   Inaccurate:     	White=1     	Black=3      OK:         	White=4     	Black=3      Best:        	White=1     	---} 1/2-1/2

[Event "Karel Janecek Open 2025"]
[Site "Prague"]
[Date "2025.03.04"]
[Round "6.16"]
[White "Dwilewicz, Katarzyna"]
[Black "Neuman, Petr"]
[Result "0-1"]
[Annotator "ChessBase"]
[ECO "B31"]
[WhiteElo "2190"]
[BlackElo "2436"]
[PlyCount "120"]
[EventDate "2025.02.21"]
[EventType "swiss"]
[EventCountry "CZE"]
[SourceTitle "playchess.com"]
[Source "ChessBase"]
[SourceQuality "1"]
[TimeControl "40/5400+30:1800+30"]

1. e4 {[%emt 0:00:03]} c5 {[%emt 0:10:37]} 2. Nf3 {[%emt 0:00:12]} Nc6 {[%emt 0:00:07]} 3. Bb5 {[%emt 0:00:15]} g6 {[%emt 0:00:06]} 4. O-O {[%emt 0:00:47]} Bg7 {[%emt 0:00:09]} 5. Bxc6 {[%emt 0:00:25]} dxc6 {[%emt 0:00:05]} 6. h3 {[%emt 0:00:33]} Nf6 {[%emt 0:00:30]} 7. d3 {[%emt 0:00:18]} Nd7 {[%emt 0:00:22]} 8. a4 {[%emt 0:00:24]} Nf8 {[%emt 0:02:12]} 9. a5 {[%emt 0:04:49]} e5 {[%emt 0:01:28]} 10. Be3 {[%emt 0:03:48]} Ne6 {[%emt 0:00:06]} 11. Nbd2 {[%emt 0:00:16]} O-O {[%emt 0:02:03]} 12. Nc4 {[%emt 0:03:53]} f6 {[%emt 0:01:45]} 13. c3 {[%emt 0:08:24]} Qe7 {[%emt 0:02:46]} 14. Re1 {[%emt 0:02:39]} Rd8 {[%emt 0:01:55]} 15. Qc2 {[%emt 0:05:28]} g5 {[%emt 0:03:35]} 16. Rad1 {[%emt 0:02:50]} h5 {[%emt 0:00:59]} 17. Qe2 {[%emt 0:06:54]} Qf7 {[%emt 0:04:09]} 18. Nfd2 {[%emt 0:07:06]} Rb8 {[%emt 0:11:23]} 19. Nb3 {[%emt 0:02:06]} b5 {[%emt 0:04:24]} 20. axb6 {[%emt 0:00:17]} axb6 {[%emt 0:00:05]} 21. Ra1 {[%emt 0:06:51]} Bf8 {[%emt 0:05:06]} 22. Red1 {[%emt 0:02:09]} Nf4 {[%emt 0:08:38]} 23. Bxf4 {[%emt 0:00:24]} exf4 {[%emt 0:00:05]} 24. e5 {[%emt 0:04:23]} Re8 {[%emt 0:12:27]} 25. Qf3 {[%emt 0:04:24]} Be6 {[%emt 0:02:19]} 26. Nbd2 {[%emt 0:03:24]} b5 {[%emt 0:09:23]} 27. Ne4 {[%emt 0:04:14]} Bd5 {[%emt 0:04:38]} 28. Ncd6 {[%emt 0:21:53]} Bxd6 {[%emt 0:00:26]} 29. exd6 {[%emt 0:00:05]} Kg7 {[%emt 0:10:16]} 30. g4 {[%emt 0:01:32]} Rbd8 {[%emt 0:01:13]} 31. Re1 {[%emt 0:00:47]} hxg4 {[%emt 0:00:51]} 32. hxg4 {[%emt 0:00:02]} Kg6 {[%emt 0:00:28]} 33. b3 {[%emt 0:02:02]} f5 {[%emt 0:01:14]} 34. gxf5+ {[%emt 0:01:13]} Qxf5 {[%emt 0:00:02]} 35. c4 {[%emt 0:00:18]} g4 {[%emt 0:00:38]} 36. Qg2 {[%emt 0:00:14]} f3 {[%emt 0:00:45]} 37. Qg3 {[%emt 0:00:34]} Rh8 {[%emt 0:00:43]} 38. Nf6 {[%emt 0:00:16]} Kxf6 {[%emt 0:00:27]} 39. cxd5 {[%emt 0:00:09]} Rh3 {[%emt 0:00:19]} 40. Re6+ {[%emt 0:00:19]} Qxe6 {[%emt 0:00:30]} 41. Qxh3 {[%emt 0:33:01]} gxh3 {[%emt 0:30:16]} 42. dxe6 {[%emt 0:00:04]} Kxe6 {[%emt 0:00:00]} 43. Re1+ {[%emt 0:00:00]} Kxd6 {[%emt 0:00:00]} 44. Re3 {[%emt 0:00:00]} Rg8+ {[%emt 0:00:00]} 45. Kh1 {[%emt 0:00:00]} Rg4 {[%emt 0:00:00]} 46. Rxf3 {[%emt 0:00:00]} Rb4 {[%emt 0:00:00]} 47. Rxh3 {[%emt 0:00:00]} Rxb3 {[%emt 0:00:00]} 48. Kg2 {[%emt 0:00:00]} Rc3 {[%emt 0:00:00]} 49. Kf1 {[%emt 0:00:00]} c4 {[%emt 0:00:00]} 50. Rh6+ {[%emt 0:00:00]} Kc5 {[%emt 0:00:00]} 51. dxc4 {[%emt 0:00:00]} Rxc4 {[%emt 0:00:00]} 52. Ke2 {[%emt 0:00:00]} Rd4 {[%emt 0:00:00]} 53. Ke3 {[%emt 0:00:00]} Rd1 {[%emt 0:00:00]} 54. f4 {[%emt 0:00:00]} b4 {[%emt 0:00:00]} 55. Rh8 {[%emt 0:00:00]} Kc4 {[%emt 0:00:00]} 56. f5 {[%emt 0:00:05]} Rf1 {[%emt 0:00:00]} 57. Ke4 {[%emt 0:04:11]} b3 {[%emt 0:00:03]} 58. Rb8 {[%emt 0:00:12]} c5 {[%emt 0:00:47]} 59. Ke5 {[%emt 0:00:05]} Kc3 {[%emt 0:00:20]} 60. f6 {[%emt 0:00:05]} b2 {[%emt 0:00:24]} 0-1

[Event "Karel Janecek Open 2025"]
[Site "Prague"]
[Date "2025.03.05"]
[Round "7.1"]
[White "Beerdsen, Thomas"]
[Black "Nyzhnyk, Illya"]
[Result "1/2-1/2"]
[Annotator "TA"]
[ECO "C42"]
[WhiteElo "2511"]
[BlackElo "2569"]
[PlyCount "47"]
[EventDate "2025.02.21"]
[EventType "swiss"]
[EventCountry "CZE"]
[SourceTitle "playchess.com"]
[Source "ChessBase"]
[SourceQuality "1"]
[TimeControl "40/5400+30:1800+30"]

{[%evp 13,47,23,24,28,32,8,8,18,33,14,46,27,41,38,39,33,56,68,65,49,45,52,51,67,59,37,57,71,66,67,66,70,68,64,75,87]} 1. e4 {[%emt 0:00:03]} e5 {[%emt 0:00:09]} 2. Nf3 {[%emt 0:00:10]} Nf6 {[%emt 0:00:09]} 3. Nxe5 {[%emt 0:00:18]} d6 {[%emt 0:00:08]} 4. Nf3 {[%emt 0:00:06]} Nxe4 {[%emt 0:00:04]} 5. Nc3 {[%emt 0:00:05]} Nxc3 {[%emt 0:00:16]} 6. dxc3 {[%emt 0:00:06]} Be7 {[%emt 0:00:13]} 7. Be3 {[%emt 0:00:16]} O-O {[%emt 0:00:17]} 8. Qd2 {[%emt 0:00:20] C42: Petroff Defence: 3 Nxe5 and unusual White 3rd moves.} Nd7 {[%emt 0:00:05]} 9. O-O-O {[%emt 0:00:15]} Nf6 {[%emt 0:00:04]} 10. Bd3 {[%emt 0:00:11] The position is equal.} c5 {[%emt 0:00:29] 10...Re8 might become the main line.} 11. h4 {[%emt 0:00:07]} Qa5 {[%emt 0:00:27]} 12. a3 {[%emt 0:00:46]} d5 {[%emt 0:02:55] [#] White must now prevent ...c4.} 13. c4 {[%emt 0:00:17]} Qxd2+ {[%emt 0:00:11]} 14. Rxd2 {[%emt 0:00:20][%cal Bd1d2,Bd2e2,Be2e3,Be3e6][%mdl 32]} h6 $146 {[%emt 0:01:06]} (14... d4 15. Bf4 h6 16. Re2 Re8 17. Rhe1 Be6 18. Ne5 Bd6 19. Ng6 Red8 20. f3 fxg6 21. Bxd6 Rxd6 22. Rxe6 Rxe6 23. Rxe6 Kf7 24. Re5 b6 25. Kd2 {½-½ Burke,J (2583)-Nyzhnyk,I (2644) Dulles Cherry Blossom op 10th 2023 (6)}) 15. Re1 {[%emt 0:11:10][%cal Oe3h6]} Be6 {[%emt 0:03:26]} 16. cxd5 {[%emt 0:02:25] White is more active.} Nxd5 {[%emt 0:00:29][%cal Bf6d5,Bd5b6,Bb6c4,Bc4e3][%mdl 32]} 17. Bc4 {[%emt 0:04:03]} Nb6 {[%emt 0:00:47]} 18. Bxe6 {[%emt 0:00:22]} fxe6 {[%emt 0:00:01]} 19. Rde2 {[%emt 0:06:36]} Nc4 {[%emt 0:00:19]} 20. Kb1 {[%emt 0:03:41]} Nxe3 {[%emt 0:12:18]} 21. Rxe3 {[%emt 0:00:05]} Rf4 {[%emt 0:00:10][%cal Oe7f6]} 22. g3 {[%emt 0:10:37]} Rf5 {[%emt 0:03:09]} 23. Rxe6 {[%emt 0:01:13]} Bf6 {[%emt 0:00:15]} 24. Nd2 {[%emt 0:30:30] Weighted Error Value: White=0.03 (flawless) /Black=0.06 (flawless)   Inaccurate:     	---       	Black=1      OK:         	White=10    	Black=7      Best:        	White=1     	Black=1} 1/2-1/2

[Event "Karel Janecek Open 2025"]
[Site "Prague"]
[Date "2025.03.05"]
[Round "7.2"]
[White "Pechac, Jergus"]
[Black "Raja Rithvik R"]
[Result "1/2-1/2"]
[Annotator "TA"]
[ECO "B90"]
[WhiteElo "2603"]
[BlackElo "2522"]
[PlyCount "46"]
[EventDate "2025.02.21"]
[EventType "swiss"]
[EventCountry "CZE"]
[SourceTitle "playchess.com"]
[Source "ChessBase"]
[SourceQuality "1"]
[TimeControl "40/5400+30:1800+30"]

{[%evp 11,46,0,3,0,0,8,0,0,6,13,43,0,0,0,0,0,0,0,4,0,0,0,0,0,0,0,0,0,0,0,0,0,0,0,0,0,0]} 1. e4 {[%emt 0:01:28]} c5 {[%emt 0:00:18]} 2. Nf3 {[%emt 0:00:06]} d6 {[%emt 0:00:05]} 3. d4 {[%emt 0:00:04]} cxd4 {[%emt 0:00:05]} 4. Nxd4 {[%emt 0:00:04]} Nf6 {[%emt 0:00:04]} 5. Nc3 {[%emt 0:00:06]} a6 {[%emt 0:00:04]} 6. a4 {[%emt 0:00:03]} Nc6 {[%emt 0:01:51]} 7. Nxc6 $1 {[%emt 0:00:35][%mdl 4] now scores much better than the old 7.Be2. B90: Sicilian Najdorf: Unusual White 6th moves, 6 Be3 Ng4 and 6 Be3 e5.} bxc6 {[%emt 0:01:57]} 8. a5 {[%emt 0:00:08]} e6 {[%emt 0:08:06]} 9. Bd3 {[%emt 0:03:53]} d5 {[%emt 0:02:57]} 10. O-O {[%emt 0:01:38]} Bb4 $146 {[%emt 0:05:02]} (10... Be7 11. Re1 O-O 12. Bf4 Bb7 13. e5 Nd7 14. Re3 g6 15. Rh3 f5 16. exf6 Rxf6 {0-1 Carlsen,M (2835)-So,W (2769) Aimchess Rapid Div 1 W 2023 (4.3)}) 11. e5 {[%emt 0:02:36]} Nd7 {[%emt 0:00:25] The position is equal.} 12. Qg4 {[%emt 0:00:15][%csl LRb4,LRg7]} Bf8 {[%emt 0:01:37]} 13. f4 {[%emt 0:19:44]} g6 {[%emt 0:01:47]} 14. Be3 {[%emt 0:02:24]} Rb8 {[%emt 0:17:55][%cal Oc6c5]} 15. Na4 {[%emt 0:06:43]} (15. Qg3 {simplifies} Bc5 16. Bf2 Bxf2+ 17. Qxf2 O-O 18. b3) 15... Qxa5 {[%emt 0:11:42]} 16. Nb6 {[%emt 0:03:48]} Qb4 {[%emt 0:00:06]} 17. c3 {[%emt 0:01:53]} Qb3 {[%emt 0:00:12]} 18. Nxd7 {[%emt 0:06:38]} Bxd7 {[%emt 0:00:13]} 19. Rxa6 {[%emt 0:00:30]} Be7 {[%emt 0:13:58][%cal Oc6c5]} 20. Ra7 {[%emt 0:04:47]} Bd8 {[%emt 0:00:30][%cal Od8b6]} 21. Qg3 {[%emt 0:10:09]} Bb6 $1 {[%emt 0:03:12]} 22. Bxb6 {[%emt 0:00:14]} Qxb6+ {[%emt 0:00:08]} 23. Qf2 {[%emt 0:00:03]} Qxf2+ {[%emt 0:02:16] An uneventful encounter.   Weighted Error Value: White=0.03 (flawless) /Black=0.03 (flawless)   Inaccurate:     	White=1     	Black=1      OK:         	White=4     	Black=8      Best:        	White=1     	---        Strong:       	---       	Black=1} 1/2-1/2